[Event "Late-Titled-Tuesday-Blitz-September-19-2023"]
[Site "Chess.com"]
[Date "2023.09.19"]
[Round "4"]
[White "Eloist"]
[Black "jinxy2009"]
[Result "1/2-1/2"]
[WhiteElo "2487"]
[BlackElo "2311"]
[TimeControl "180+1"]
[EndTime "14:37:57 PDT"]
[Termination "Game drawn - insufficient material"]

1. e4 {[%clk 0:02:56.9]} 1... c5 {[%clk 0:02:57.4]} 2. Nf3 {[%clk 0:02:56.1]}
2... Nc6 {[%clk 0:02:56.3]} 3. Bb5 {[%clk 0:02:56]} 3... g6 {[%clk 0:02:56.1]}
4. Bxc6 {[%clk 0:02:55.9]} 4... dxc6 {[%clk 0:02:57]} 5. d3 {[%clk 0:02:55.5]}
5... Bg7 {[%clk 0:02:56.6]} 6. O-O {[%clk 0:02:54.2]} 6... Nf6 {[%clk
0:02:56.2]} 7. a4 {[%clk 0:02:53.4]} 7... a5 {[%clk 0:02:51.8]} 8. Be3 {[%clk
0:02:50.6]} 8... b6 {[%clk 0:02:39.1]} 9. Qc1 {[%clk 0:02:45.6]} 9... Bg4 {[%clk
0:02:37.6]} 10. Ne5 {[%clk 0:02:43.8]} 10... Rc8 {[%clk 0:02:12.8]} 11. Na3
{[%clk 0:02:32.3]} 11... Be6 {[%clk 0:02:05]} 12. Bh6 {[%clk 0:02:27.1]} 12...
O-O {[%clk 0:02:01.3]} 13. Bxg7 {[%clk 0:02:26.2]} 13... Kxg7 {[%clk 0:02:02.2]}
14. Nac4 {[%clk 0:02:24.4]} 14... Bxc4 {[%clk 0:01:59.2]} 15. Nxc4 {[%clk
0:02:23.7]} 15... Nd7 {[%clk 0:01:55.5]} 16. f4 {[%clk 0:02:22.6]} 16... e6
{[%clk 0:01:39.1]} 17. e5 {[%clk 0:02:19.9]} 17... Nb8 {[%clk 0:01:10.9]} 18.
Qe3 {[%clk 0:02:16.4]} 18... Qd4 {[%clk 0:01:03.3]} 19. Qxd4 {[%clk 0:02:14.7]}
19... cxd4 {[%clk 0:01:04.2]} 20. Nxb6 {[%clk 0:02:14.7]} 20... Rc7 {[%clk
0:01:01.1]} 21. Nc4 {[%clk 0:02:14]} 21... Ra7 {[%clk 0:00:58.3]} 22. Rfb1
{[%clk 0:02:04.6]} 22... c5 {[%clk 0:00:56.3]} 23. c3 {[%clk 0:02:02.4]} 23...
dxc3 {[%clk 0:00:55.6]} 24. bxc3 {[%clk 0:02:01.8]} 24... Nc6 {[%clk 0:00:56.5]}
25. Rb5 {[%clk 0:01:57.1]} 25... Rd8 {[%clk 0:00:52.5]} 26. Rxc5 {[%clk
0:01:56.4]} 26... Ne7 {[%clk 0:00:51.4]} 27. Nd6 {[%clk 0:01:37.9]} 27... Nf5
{[%clk 0:00:49.3]} 28. Nxf5+ {[%clk 0:01:31.8]} 28... gxf5 {[%clk 0:00:48.6]}
29. d4 {[%clk 0:01:29]} 29... Rb8 {[%clk 0:00:45.9]} 30. c4 {[%clk 0:01:23]}
30... Rb4 {[%clk 0:00:42.5]} 31. d5 {[%clk 0:01:09.5]} 31... exd5 {[%clk
0:00:39.6]} 32. cxd5 {[%clk 0:01:09.4]} 32... Rxf4 {[%clk 0:00:40.5]} 33. Rd1
{[%clk 0:01:07.6]} 33... Rd7 {[%clk 0:00:23.9]} 34. d6 {[%clk 0:01:04.4]} 34...
Rxa4 {[%clk 0:00:23.7]} 35. Rdc1 {[%clk 0:00:52]} 35... Rb4 {[%clk 0:00:20]} 36.
Rc7 {[%clk 0:00:50.8]} 36... Rb7 {[%clk 0:00:19.8]} 37. Rxd7 {[%clk 0:00:41.9]}
37... Rxd7 {[%clk 0:00:19.6]} 38. Rc7 {[%clk 0:00:41.9]} 38... Rd8 {[%clk
0:00:20.2]} 39. Ra7 {[%clk 0:00:33.3]} 39... Kg6 {[%clk 0:00:17.5]} 40. Kf2
{[%clk 0:00:26.6]} 40... f6 {[%clk 0:00:17.8]} 41. exf6 {[%clk 0:00:10.9]} 41...
Rxd6 {[%clk 0:00:17.2]} 42. f7 {[%clk 0:00:09.5]} 42... Rf6 {[%clk 0:00:17.4]}
43. Kf3 {[%clk 0:00:08]} 43... Rxf7 {[%clk 0:00:17.1]} 44. Rxa5 {[%clk
0:00:08.2]} 44... Rf6 {[%clk 0:00:16.8]} 45. Kf4 {[%clk 0:00:07.4]} 45... h6
{[%clk 0:00:17.2]} 46. g3 {[%clk 0:00:06.4]} 46... Rf7 {[%clk 0:00:17.5]} 47.
Ra6+ {[%clk 0:00:06.4]} 47... Rf6 {[%clk 0:00:17.9]} 48. Rxf6+ {[%clk
0:00:06.2]} 48... Kxf6 {[%clk 0:00:18.8]} 49. h3 {[%clk 0:00:05.1]} 49... Ke6
{[%clk 0:00:18.9]} 50. g4 {[%clk 0:00:03.4]} 50... fxg4 {[%clk 0:00:18.5]} 51.
hxg4 {[%clk 0:00:03.9]} 51... Kf6 {[%clk 0:00:18.9]} 52. Kf3 {[%clk 0:00:04.4]}
52... Kg5 {[%clk 0:00:19.1]} 53. Kg3 {[%clk 0:00:05.3]} 53... h5 {[%clk
0:00:19.7]} 54. gxh5 {[%clk 0:00:04.4]} 54... Kxh5 {[%clk 0:00:20.6]} 1/2-1/2

[Event "Late-Titled-Tuesday-Blitz-September-19-2023"]
[Site "Chess.com"]
[Date "2023.09.19"]
[Round "4"]
[White "kleopl"]
[Black "dawid498"]
[Result "0-1"]
[WhiteElo "2459"]
[BlackElo "2649"]
[TimeControl "180+1"]
[EndTime "14:37:59 PDT"]
[Termination "dawid498 won on time"]

1. e4 {[%clk 0:03:00.9]} 1... c5 {[%clk 0:03:00.1]} 2. Nf3 {[%clk 0:02:59.7]}
2... e6 {[%clk 0:02:59]} 3. b3 {[%clk 0:02:59.7]} 3... b6 {[%clk 0:02:58.1]} 4.
d4 {[%clk 0:02:57.5]} 4... cxd4 {[%clk 0:02:56.5]} 5. Nxd4 {[%clk 0:02:58.4]}
5... Nc6 {[%clk 0:02:48.8]} 6. Nxc6 {[%clk 0:02:55.5]} 6... dxc6 {[%clk
0:02:49]} 7. Qxd8+ {[%clk 0:02:55.8]} 7... Kxd8 {[%clk 0:02:49.9]} 8. Bb2 {[%clk
0:02:54.9]} 8... Nf6 {[%clk 0:02:47.8]} 9. f3 {[%clk 0:02:50.8]} 9... Nd7 {[%clk
0:02:35.5]} 10. Nd2 {[%clk 0:02:47.6]} 10... e5 {[%clk 0:02:32.8]} 11. O-O-O
{[%clk 0:02:43.2]} 11... Kc7 {[%clk 0:02:30.5]} 12. Nc4 {[%clk 0:02:28.6]} 12...
f6 {[%clk 0:02:30.6]} 13. Ne3 {[%clk 0:02:28.8]} 13... Nc5 {[%clk 0:02:25.8]}
14. a4 {[%clk 0:02:24.8]} 14... Be6 {[%clk 0:01:56.8]} 15. Bc4 {[%clk
0:02:24.6]} 15... Bxc4 {[%clk 0:01:53.9]} 16. Nxc4 {[%clk 0:02:25.5]} 16... Ne6
{[%clk 0:01:54.6]} 17. Bc3 {[%clk 0:02:11]} 17... Bc5 {[%clk 0:01:47.3]} 18. Kb2
{[%clk 0:01:52.4]} 18... Rad8 {[%clk 0:01:37.3]} 19. Kc1 {[%clk 0:01:39.9]}
19... Nf4 {[%clk 0:01:20.6]} 20. g3 {[%clk 0:01:13.6]} 20... Ne2+ {[%clk
0:01:16.3]} 21. Kb2 {[%clk 0:01:11.5]} 21... Nxc3 {[%clk 0:01:09.4]} 22. Kxc3
{[%clk 0:01:12.4]} 22... b5 {[%clk 0:00:45]} 23. axb5 {[%clk 0:00:46.9]} 23...
cxb5 {[%clk 0:00:45.9]} 24. Nd2 {[%clk 0:00:31.9]} 24... Bd4+ {[%clk 0:00:38.5]}
25. Kd3 {[%clk 0:00:29.9]} 25... Kb6 {[%clk 0:00:20.3]} 26. c3 {[%clk
0:00:25.1]} 26... Bc5+ {[%clk 0:00:20.7]} 27. Kc2 {[%clk 0:00:25.1]} 27... a5
{[%clk 0:00:21.3]} 28. c4 {[%clk 0:00:19.3]} 28... Bb4 {[%clk 0:00:11.1]} 29.
cxb5 {[%clk 0:00:17.4]} 29... Kxb5 {[%clk 0:00:12]} 30. Nc4 {[%clk 0:00:17]}
30... a4 {[%clk 0:00:10.7]} 31. Nb2 {[%clk 0:00:12.5]} 31... Rc8+ {[%clk
0:00:08.3]} 32. Kb1 {[%clk 0:00:12.6]} 32... axb3 {[%clk 0:00:08.1]} 33. Rd7
{[%clk 0:00:12.2]} 33... Bc5 {[%clk 0:00:03.1]} 34. Rhd1 {[%clk 0:00:10.8]}
34... Bd4 {[%clk 0:00:02.8]} 35. Rxg7 {[%clk 0:00:08.9]} 35... Rc2 {[%clk
0:00:02.2]} 36. Nd3 {[%clk 0:00:08.6]} 36... Ra8 {[%clk 0:00:02.4]} 37. Rb7+
{[%clk 0:00:07.9]} 37... Kc4 {[%clk 0:00:03]} 38. Rc7+ {[%clk 0:00:07.3]} 38...
Kb5 {[%clk 0:00:02.4]} 39. Rb7+ {[%clk 0:00:06.6]} 39... Kc6 {[%clk 0:00:02.3]}
40. Rxb3 {[%clk 0:00:05.6]} 40... Rxh2 {[%clk 0:00:02.4]} 41. Rc1+ {[%clk
0:00:05.3]} 41... Kd6 {[%clk 0:00:03]} 42. Nb2 {[%clk 0:00:04]} 42... Rg8 {[%clk
0:00:02.2]} 43. g4 {[%clk 0:00:04.2]} 43... h5 {[%clk 0:00:02.1]} 44. gxh5
{[%clk 0:00:03.1]} 44... Rgg2 {[%clk 0:00:03]} 45. Nc4+ {[%clk 0:00:01.8]} 45...
Ke6 {[%clk 0:00:03.6]} 46. Rd1 {[%clk 0:00:01.5]} 46... Ra2 {[%clk 0:00:03.7]}
0-1

[Event "Late-Titled-Tuesday-Blitz-September-19-2023"]
[Site "Chess.com"]
[Date "2023.09.19"]
[Round "4"]
[White "Zhigalko_Sergei"]
[Black "HamedWafa4"]
[Result "1/2-1/2"]
[WhiteElo "2833"]
[BlackElo "2653"]
[TimeControl "180+1"]
[EndTime "14:38:01 PDT"]
[Termination "Game drawn by repetition"]

1. e4 {[%clk 0:03:00.9]} 1... c5 {[%clk 0:02:54.7]} 2. Nf3 {[%clk 0:03:00.7]}
2... d6 {[%clk 0:02:54.7]} 3. d4 {[%clk 0:02:59.5]} 3... cxd4 {[%clk 0:02:54.4]}
4. Qxd4 {[%clk 0:02:58.5]} 4... Nf6 {[%clk 0:02:54.2]} 5. Nc3 {[%clk 0:02:56.8]}
5... Nc6 {[%clk 0:02:53.4]} 6. Bb5 {[%clk 0:02:56.1]} 6... Bd7 {[%clk
0:02:53.5]} 7. Bxc6 {[%clk 0:02:56.2]} 7... Bxc6 {[%clk 0:02:53.6]} 8. Bg5
{[%clk 0:02:51.3]} 8... e6 {[%clk 0:02:52.2]} 9. O-O-O {[%clk 0:02:50.5]} 9...
Be7 {[%clk 0:02:47.5]} 10. Rhe1 {[%clk 0:02:49.9]} 10... h6 {[%clk 0:02:44]} 11.
Bh4 {[%clk 0:02:49]} 11... O-O {[%clk 0:02:37]} 12. Kb1 {[%clk 0:02:48.7]} 12...
Qb6 {[%clk 0:02:16.7]} 13. Qd2 {[%clk 0:02:37.9]} 13... Rfe8 {[%clk 0:02:09]}
14. Nd4 {[%clk 0:02:32.4]} 14... Rac8 {[%clk 0:02:03.6]} 15. f3 {[%clk
0:02:29.4]} 15... a6 {[%clk 0:01:21.4]} 16. Bf2 {[%clk 0:01:54.9]} 16... Qc7
{[%clk 0:01:17.6]} 17. Bg3 {[%clk 0:01:43.3]} 17... Red8 {[%clk 0:01:10.4]} 18.
h4 {[%clk 0:01:36.7]} 18... b5 {[%clk 0:01:06.5]} 19. Bh2 {[%clk 0:01:31.4]}
19... b4 {[%clk 0:01:05]} 20. Nce2 {[%clk 0:01:31.5]} 20... a5 {[%clk
0:01:03.3]} 21. g4 {[%clk 0:01:31.5]} 21... Nh7 {[%clk 0:00:57.6]} 22. Nxc6
{[%clk 0:01:07.3]} 22... Qxc6 {[%clk 0:00:57.4]} 23. Nd4 {[%clk 0:01:08]} 23...
Qc4 {[%clk 0:00:54]} 24. Bg3 {[%clk 0:01:07.9]} 24... Bf6 {[%clk 0:00:51.1]} 25.
Bf2 {[%clk 0:00:47.4]} 25... a4 {[%clk 0:00:50.8]} 26. Qd3 {[%clk 0:00:34.2]}
26... Qc7 {[%clk 0:00:49]} 27. Nb5 {[%clk 0:00:15.9]} 27... Qc6 {[%clk
0:00:47.8]} 28. Na7 {[%clk 0:00:16.2]} 28... Qc7 {[%clk 0:00:45]} 29. Nxc8
{[%clk 0:00:16.6]} 29... Rxc8 {[%clk 0:00:45.6]} 30. Re2 {[%clk 0:00:14.6]}
30... a3 {[%clk 0:00:32.8]} 31. b3 {[%clk 0:00:13.7]} 31... Nf8 {[%clk
0:00:27.7]} 32. Red2 {[%clk 0:00:13.4]} 32... Bc3 {[%clk 0:00:26.6]} 33. Qxd6
{[%clk 0:00:11.9]} 33... Bxd2 {[%clk 0:00:17.2]} 34. Qxc7 {[%clk 0:00:11.9]}
34... Rxc7 {[%clk 0:00:18.1]} 35. Rxd2 {[%clk 0:00:12.4]} 35... Ng6 {[%clk
0:00:19]} 36. Bg3 {[%clk 0:00:08.4]} 36... e5 {[%clk 0:00:16.8]} 37. h5 {[%clk
0:00:05.1]} 37... Nf4 {[%clk 0:00:17.1]} 38. Bxf4 {[%clk 0:00:05.4]} 38... exf4
{[%clk 0:00:18]} 39. Rd4 {[%clk 0:00:03.4]} 39... Rc3 {[%clk 0:00:17.4]} 40. Rd3
{[%clk 0:00:03.8]} 40... Rc5 {[%clk 0:00:17.5]} 41. Kc1 {[%clk 0:00:04.3]} 41...
g6 {[%clk 0:00:18.1]} 42. hxg6 {[%clk 0:00:04.1]} 42... fxg6 {[%clk 0:00:19]}
43. Rd4 {[%clk 0:00:04.3]} 43... Rc3 {[%clk 0:00:18.8]} 44. Rd3 {[%clk
0:00:04.7]} 44... Rc5 {[%clk 0:00:19.4]} 45. Kd2 {[%clk 0:00:05]} 45... h5
{[%clk 0:00:20]} 46. gxh5 {[%clk 0:00:02.9]} 46... gxh5 {[%clk 0:00:20.9]} 47.
Rd8+ {[%clk 0:00:02.5]} 47... Kg7 {[%clk 0:00:21]} 48. Rb8 {[%clk 0:00:01.7]}
48... h4 {[%clk 0:00:21.2]} 49. Rxb4 {[%clk 0:00:02.3]} 49... Rh5 {[%clk
0:00:20.5]} 50. Rb7+ {[%clk 0:00:02.3]} 50... Kf6 {[%clk 0:00:21]} 51. Rb6+
{[%clk 0:00:02.3]} 51... Kf7 {[%clk 0:00:21.6]} 52. Rb7+ {[%clk 0:00:02.8]}
52... Kf6 {[%clk 0:00:22.1]} 53. Rb6+ {[%clk 0:00:03.2]} 53... Kg7 {[%clk
0:00:22.3]} 54. Rb7+ {[%clk 0:00:03.6]} 54... Kg8 {[%clk 0:00:22.8]} 55. Rb8+
{[%clk 0:00:03.9]} 55... Kg7 {[%clk 0:00:23.3]} 56. Rb7+ {[%clk 0:00:04.2]}
1/2-1/2

[Event "Late-Titled-Tuesday-Blitz-September-19-2023"]
[Site "Chess.com"]
[Date "2023.09.19"]
[Round "4"]
[White "Orest_Vovk"]
[Black "Francisco_Ferrari"]
[Result "1-0"]
[WhiteElo "2556"]
[BlackElo "2370"]
[TimeControl "180+1"]
[EndTime "14:38:01 PDT"]
[Termination "Orest_Vovk won by checkmate"]

1. e4 {[%clk 0:02:56.8]} 1... c5 {[%clk 0:02:59.3]} 2. Nf3 {[%clk 0:02:56.3]}
2... d6 {[%clk 0:02:57.9]} 3. Bb5+ {[%clk 0:02:55.9]} 3... Bd7 {[%clk
0:02:57.2]} 4. a4 {[%clk 0:02:56.1]} 4... Nf6 {[%clk 0:02:53.1]} 5. d3 {[%clk
0:02:54.4]} 5... a6 {[%clk 0:02:49]} 6. Bxd7+ {[%clk 0:02:53.9]} 6... Qxd7
{[%clk 0:02:47.2]} 7. a5 {[%clk 0:02:54.8]} 7... Nc6 {[%clk 0:02:47.1]} 8. O-O
{[%clk 0:02:54.7]} 8... g6 {[%clk 0:02:45.3]} 9. Nc3 {[%clk 0:02:53.9]} 9... Rd8
{[%clk 0:02:27.9]} 10. Re1 {[%clk 0:02:44]} 10... Bg7 {[%clk 0:02:28.1]} 11. e5
{[%clk 0:02:35.4]} 11... dxe5 {[%clk 0:02:24.7]} 12. Nxe5 {[%clk 0:02:36.3]}
12... Nxe5 {[%clk 0:02:24.7]} 13. Rxe5 {[%clk 0:02:37.1]} 13... Qc7 {[%clk
0:02:14.6]} 14. Bf4 {[%clk 0:02:24.1]} 14... Nh5 {[%clk 0:02:05]} 15. Rxh5
{[%clk 0:02:19.5]} 15... Qxf4 {[%clk 0:02:05]} 16. Rh3 {[%clk 0:01:58.6]} 16...
O-O {[%clk 0:01:59.2]} 17. Ne4 {[%clk 0:01:45.4]} 17... Bxb2 {[%clk 0:01:40.6]}
18. Rb1 {[%clk 0:01:44.7]} 18... Bg7 {[%clk 0:01:40.7]} 19. Nxc5 {[%clk
0:01:33]} 19... Bd4 {[%clk 0:01:33.3]} 20. Ne4 {[%clk 0:01:23.7]} 20... f5
{[%clk 0:01:27.9]} 21. Rf3 {[%clk 0:01:23.3]} 21... Qc7 {[%clk 0:00:48]} 22. Ng5
{[%clk 0:01:19.3]} 22... Qc6 {[%clk 0:00:28.8]} 23. Qe2 {[%clk 0:01:14.6]} 23...
e5 {[%clk 0:00:26.9]} 24. Rh3 {[%clk 0:01:08.8]} 24... Rd7 {[%clk 0:00:23]} 25.
Nf3 {[%clk 0:01:05.2]} 25... Rc8 {[%clk 0:00:17.5]} 26. Nxd4 {[%clk 0:00:51.4]}
26... exd4 {[%clk 0:00:13.8]} 27. g3 {[%clk 0:00:32.8]} 27... Rdc7 {[%clk
0:00:12]} 28. Rb6 {[%clk 0:00:23.7]} 28... Qxc2 {[%clk 0:00:10.2]} 29. Qe6+
{[%clk 0:00:23.7]} 29... Kg7 {[%clk 0:00:09.3]} 30. Rxh7+ {[%clk 0:00:18.9]}
30... Kxh7 {[%clk 0:00:09]} 31. Qxg6+ {[%clk 0:00:19.5]} 31... Kh8 {[%clk
0:00:09.6]} 32. Qh6+ {[%clk 0:00:14.5]} 32... Rh7 {[%clk 0:00:09.9]} 33. Qf6+
{[%clk 0:00:14.6]} 33... Kg8 {[%clk 0:00:10.2]} 34. Qg6+ {[%clk 0:00:11.8]}
34... Rg7 {[%clk 0:00:08.6]} 35. Qe6+ {[%clk 0:00:11.9]} 35... Kh8 {[%clk
0:00:08.5]} 36. Qh6+ {[%clk 0:00:11.3]} 36... Kg8 {[%clk 0:00:06.5]} 37. Qe6+
{[%clk 0:00:08.6]} 37... Kh8 {[%clk 0:00:07]} 38. Qh6+ {[%clk 0:00:05]} 38...
Rh7 {[%clk 0:00:07.7]} 39. Qf6+ {[%clk 0:00:04.5]} 39... Kg8 {[%clk 0:00:08.4]}
40. Qe6+ {[%clk 0:00:03.4]} 40... Rf7 {[%clk 0:00:06.1]} 41. Qg6+ {[%clk
0:00:02.7]} 41... Kf8 {[%clk 0:00:06.7]} 42. Qh6+ {[%clk 0:00:02.4]} 42... Ke8
{[%clk 0:00:07.3]} 43. Qe6+ {[%clk 0:00:02.5]} 43... Re7 {[%clk 0:00:07]} 44.
Qg8+ {[%clk 0:00:01.7]} 44... Kd7 {[%clk 0:00:07.6]} 45. Qd5+ {[%clk 0:00:02.2]}
45... Ke8 {[%clk 0:00:08]} 46. Qg8+ {[%clk 0:00:02.3]} 46... Kd7 {[%clk
0:00:07.9]} 47. Qd5+ {[%clk 0:00:02.3]} 47... Kc7 {[%clk 0:00:08.5]} 48. Qd6#
{[%clk 0:00:02.5]} 1-0

[Event "Late-Titled-Tuesday-Blitz-September-19-2023"]
[Site "Chess.com"]
[Date "2023.09.19"]
[Round "4"]
[White "Squirlolz"]
[Black "rionelG"]
[Result "1-0"]
[WhiteElo "2500"]
[BlackElo "2328"]
[TimeControl "180+1"]
[EndTime "14:38:01 PDT"]
[Termination "Squirlolz won by resignation"]

1. d4 {[%clk 0:02:54]} 1... Nf6 {[%clk 0:02:59.1]} 2. g3 {[%clk 0:02:53.2]} 2...
g6 {[%clk 0:02:58.9]} 3. Bg2 {[%clk 0:02:53.4]} 3... Bg7 {[%clk 0:02:59.5]} 4.
e4 {[%clk 0:02:52.9]} 4... d6 {[%clk 0:02:59.1]} 5. Ne2 {[%clk 0:02:53.4]} 5...
O-O {[%clk 0:02:58.4]} 6. O-O {[%clk 0:02:54]} 6... Nfd7 {[%clk 0:02:58.1]} 7.
Be3 {[%clk 0:02:53.8]} 7... c5 {[%clk 0:02:57.8]} 8. c3 {[%clk 0:02:53.3]} 8...
Nc6 {[%clk 0:02:57.3]} 9. d5 {[%clk 0:02:53.1]} 9... Nce5 {[%clk 0:02:56.8]} 10.
a4 {[%clk 0:02:51.5]} 10... Ng4 {[%clk 0:02:53.9]} 11. Bf4 {[%clk 0:02:48.4]}
11... Rb8 {[%clk 0:02:39.5]} 12. Na3 {[%clk 0:02:45.4]} 12... a6 {[%clk
0:02:37.6]} 13. Qd2 {[%clk 0:02:39.9]} 13... b5 {[%clk 0:02:34.8]} 14. axb5
{[%clk 0:02:31]} 14... axb5 {[%clk 0:02:34.6]} 15. h3 {[%clk 0:02:31]} 15...
Nge5 {[%clk 0:02:33.3]} 16. Bh6 {[%clk 0:02:30.3]} 16... b4 {[%clk 0:02:32.6]}
17. cxb4 {[%clk 0:02:29.3]} 17... Rxb4 {[%clk 0:02:10.7]} 18. Bxg7 {[%clk
0:02:30.2]} 18... Kxg7 {[%clk 0:02:10.4]} 19. f4 {[%clk 0:02:25.7]} 19... Nc4
{[%clk 0:02:09.7]} 20. Qc3+ {[%clk 0:02:24.3]} 20... Nce5 {[%clk 0:01:52.3]} 21.
fxe5 {[%clk 0:02:16.1]} 21... Nxe5 {[%clk 0:01:53.2]} 22. b3 {[%clk 0:02:10.7]}
22... Ba6 {[%clk 0:01:47.9]} 23. Rf2 {[%clk 0:02:03.5]} 23... Qb6 {[%clk
0:01:44]} 24. Nc1 {[%clk 0:01:16.2]} 24... Rb8 {[%clk 0:01:30.6]} 25. Nc2 {[%clk
0:01:12.9]} 25... Rb5 {[%clk 0:00:26.1]} 26. Bf1 {[%clk 0:01:11.8]} 26... f6
{[%clk 0:00:25.4]} 27. Bxb5 {[%clk 0:01:07.2]} 27... Bxb5 {[%clk 0:00:26.3]} 28.
Qa5 {[%clk 0:00:59.3]} 28... Bd7 {[%clk 0:00:16.5]} 29. Qxb6 {[%clk 0:00:57.6]}
29... Rxb6 {[%clk 0:00:17.4]} 30. Ra7 {[%clk 0:00:55.2]} 30... c4 {[%clk
0:00:15.1]} 31. bxc4 {[%clk 0:00:52.5]} 31... Rb1 {[%clk 0:00:15.5]} 32. Ra1
{[%clk 0:00:49.8]} 32... Rb2 {[%clk 0:00:14]} 33. Nd4 {[%clk 0:00:47.7]} 33...
Rb4 {[%clk 0:00:13.4]} 34. Rc2 {[%clk 0:00:41]} 34... Nxc4 {[%clk 0:00:12.6]}
35. Ra7 {[%clk 0:00:35.8]} 35... Ne5 {[%clk 0:00:12.7]} 36. Nc6 {[%clk
0:00:35.2]} 36... Bxh3 {[%clk 0:00:06.6]} 37. Nxe5 {[%clk 0:00:33.1]} 37... fxe5
{[%clk 0:00:07.5]} 38. Rxe7+ {[%clk 0:00:30.6]} 38... Kf6 {[%clk 0:00:08]} 39.
Rxh7 {[%clk 0:00:26.7]} 39... Bg4 {[%clk 0:00:08.6]} 40. Nd3 {[%clk 0:00:20.3]}
40... Rxe4 {[%clk 0:00:06.8]} 41. Nf2 {[%clk 0:00:20.1]} 41... Re1+ {[%clk
0:00:06.8]} 42. Kg2 {[%clk 0:00:20.2]} 42... Bf5 {[%clk 0:00:06.4]} 43. Rcc7
{[%clk 0:00:19.6]} 43... e4 {[%clk 0:00:05.4]} 44. g4 {[%clk 0:00:17.8]} 44...
e3 {[%clk 0:00:05.6]} 45. gxf5 {[%clk 0:00:14.2]} 45... exf2 {[%clk 0:00:05.5]}
46. Kxf2 {[%clk 0:00:13.4]} 46... Re5 {[%clk 0:00:04.5]} 47. fxg6 {[%clk
0:00:12.3]} 47... Kxg6 {[%clk 0:00:05.4]} 48. Rhd7 {[%clk 0:00:09.7]} 48... Rxd5
{[%clk 0:00:05.1]} 49. Rc6 {[%clk 0:00:09.4]} 1-0

[Event "Late-Titled-Tuesday-Blitz-September-19-2023"]
[Site "Chess.com"]
[Date "2023.09.19"]
[Round "4"]
[White "Der_Honigdachs"]
[Black "ChessSwole"]
[Result "0-1"]
[WhiteElo "2518"]
[BlackElo "2711"]
[TimeControl "180+1"]
[EndTime "14:38:12 PDT"]
[Termination "ChessSwole won on time"]

1. d4 {[%clk 0:02:58.9]} 1... d5 {[%clk 0:02:59.2]} 2. Bf4 {[%clk 0:02:58.4]}
2... c5 {[%clk 0:02:58.3]} 3. e3 {[%clk 0:02:57.3]} 3... Nc6 {[%clk 0:02:57.4]}
4. Nf3 {[%clk 0:02:57.4]} 4... Nf6 {[%clk 0:02:55.1]} 5. Bb5 {[%clk 0:02:52.6]}
5... e6 {[%clk 0:02:44.5]} 6. Ne5 {[%clk 0:02:43.7]} 6... Qb6 {[%clk 0:02:42.1]}
7. c4 {[%clk 0:02:31.3]} 7... a6 {[%clk 0:02:28.1]} 8. Qa4 {[%clk 0:02:26.1]}
8... Bd7 {[%clk 0:02:20.6]} 9. Nxd7 {[%clk 0:02:14.1]} 9... Nxd7 {[%clk
0:02:21.5]} 10. O-O {[%clk 0:02:03]} 10... Rc8 {[%clk 0:02:13.2]} 11. Bxc6
{[%clk 0:02:02.5]} 11... Qxc6 {[%clk 0:02:13.1]} 12. Qxc6 {[%clk 0:02:02.4]}
12... bxc6 {[%clk 0:02:13.7]} 13. Nd2 {[%clk 0:01:46.2]} 13... cxd4 {[%clk
0:02:11.9]} 14. exd4 {[%clk 0:01:47.1]} 14... Be7 {[%clk 0:01:57.9]} 15. Rac1
{[%clk 0:01:35.5]} 15... O-O {[%clk 0:01:55.6]} 16. c5 {[%clk 0:01:26.1]} 16...
f6 {[%clk 0:01:51.7]} 17. Nb3 {[%clk 0:01:24.8]} 17... e5 {[%clk 0:01:49.8]} 18.
Be3 {[%clk 0:01:24.9]} 18... Bd8 {[%clk 0:01:47]} 19. Bd2 {[%clk 0:01:23.4]}
19... Re8 {[%clk 0:01:41.6]} 20. Rfe1 {[%clk 0:01:22.6]} 20... Kf7 {[%clk
0:01:41.2]} 21. Ba5 {[%clk 0:01:12.5]} 21... Rb8 {[%clk 0:01:32.3]} 22. Bxd8
{[%clk 0:00:54.3]} 22... Rexd8 {[%clk 0:01:33.2]} 23. f4 {[%clk 0:00:39.5]}
23... exf4 {[%clk 0:01:21.9]} 24. Na5 {[%clk 0:00:37.3]} 24... Rxb2 {[%clk
0:01:15.7]} 25. Nxc6 {[%clk 0:00:37.3]} 25... Re8 {[%clk 0:01:09.4]} 26. Rxe8
{[%clk 0:00:36.8]} 26... Kxe8 {[%clk 0:01:10.3]} 27. Re1+ {[%clk 0:00:36.7]}
27... Kf8 {[%clk 0:01:10.7]} 28. Ne7 {[%clk 0:00:21]} 28... Rd2 {[%clk
0:01:04.2]} 29. c6 {[%clk 0:00:15.3]} 29... Nb6 {[%clk 0:01:03.8]} 30. c7 {[%clk
0:00:12.8]} 30... Rc2 {[%clk 0:00:59.3]} 31. Re6 {[%clk 0:00:06.7]} 31... Rxc7
{[%clk 0:00:56.8]} 32. Nf5 {[%clk 0:00:06.7]} 32... Rc1+ {[%clk 0:00:53.1]} 33.
Kf2 {[%clk 0:00:07.2]} 33... Nc4 {[%clk 0:00:52.6]} 34. Rxa6 {[%clk 0:00:07.7]}
34... g6 {[%clk 0:00:47.7]} 35. Ra8+ {[%clk 0:00:07.4]} 35... Kf7 {[%clk
0:00:47.9]} 36. Ra7+ {[%clk 0:00:07.9]} 36... Ke6 {[%clk 0:00:47.1]} 37. Ng7+
{[%clk 0:00:08.8]} 37... Kd6 {[%clk 0:00:47.7]} 38. Ne8+ {[%clk 0:00:09.3]}
38... Kc6 {[%clk 0:00:47.7]} 39. Nxf6 {[%clk 0:00:09.7]} 39... Nd2 {[%clk
0:00:41.7]} 40. Rxh7 {[%clk 0:00:08.9]} 40... Rc2 {[%clk 0:00:39.2]} 41. Ke1
{[%clk 0:00:08.6]} 41... Rxa2 {[%clk 0:00:36.4]} 42. Rg7 {[%clk 0:00:08.8]}
42... Kb5 {[%clk 0:00:27.6]} 43. Rxg6 {[%clk 0:00:08.6]} 43... Kc4 {[%clk
0:00:27.2]} 44. Rg4 {[%clk 0:00:08.1]} 44... f3 {[%clk 0:00:24.5]} 45. Kf2
{[%clk 0:00:02.4]} 45... Ne4+ {[%clk 0:00:21.7]} 46. Kxf3 {[%clk 0:00:02.6]}
46... Nxf6 {[%clk 0:00:20.8]} 47. Rg6 {[%clk 0:00:01.9]} 47... Ne4 {[%clk
0:00:20.4]} 48. h4 {[%clk 0:00:02]} 48... Kxd4 {[%clk 0:00:20.1]} 49. h5 {[%clk
0:00:02.3]} 49... Rf2+ {[%clk 0:00:20.5]} 50. Kg4 {[%clk 0:00:02.4]} 50... Rxg2+
{[%clk 0:00:21.1]} 0-1